[Event "44th Chess Olympiad Women 2022"]
[Site "Chennai"]
[Date "2022.08.08"]
[Round "10.48"]
[White "Ahmad Murad, Fatema Alzahraa."]
[Black "Chuemsakul, Sarocha"]
[Result "1/2-1/2"]
[WhiteElo "1791"]
[BlackElo "1684"]
[Annotator "NA RC"]
[PlyCount "120"]
[EventDate "2022.??.??"]
[TimeControl "60"]

1. d4 {[%emt 0:00:09]} Nf6 {[%emt 0:00:13]} 2. c4 {[%emt 0:00:37]} e6 {[%emt 0:
00:00]} 3. Nc3 {[%emt 0:01:08]} d5 {[%emt 0:00:16]} 4. Bg5 {[%emt 0:00:59]} Be7
{[%emt 0:00:23]} 5. Nf3 {[%emt 0:01:40]} h6 {[%emt 0:00:45]} 6. Bh4 {[%emt 0:
00:00]} O-O {[%emt 0:00:24]} 7. e3 {[%emt 0:00:52]} b6 {[%emt 0:00:23]} 8. Qb3
{[%emt 0:03:29]} dxc4 {[%emt 0:04:14]} 9. Bxc4 {[%emt 0:00:15]} Nc6 {[%emt 0:
00:00]} 10. Bb5 {[%emt 0:04:21]} Bb7 {[%emt 0:02:04]} 11. Rd1 {[%emt 0:02:07]}
a6 {[%emt 0:08:32]} 12. Be2 {[%emt 0:00:46]} Na5 {[%emt 0:05:07]} 13. Qc2 {
[%emt 0:01:55]} Nd5 {[%emt 0:01:59]} 14. Bxe7 {[%emt 0:08:39]} Qxe7 {[%emt 0:
00:00]} 15. a3 {[%emt 0:00:37]} c5 {[%emt 0:06:10]} 16. O-O {[%emt 0:12:40]} c4
{[%emt 0:10:26]} 17. Na4 {[%emt 0:06:26]} Qc7 {[%emt 0:05:25]} 18. Ne5 {
[%emt 0:01:37]} Rac8 {[%emt 0:02:40]} 19. e4 {[%emt 0:10:55]} Nf4 {[%emt 0:00:
00]} 20. f3 {[%emt 0:03:24]} Rfd8 {[%emt 0:02:13]} 21. Qd2 {[%emt 0:05:02]}
Nxe2+ {[%emt 0:02:33]} 22. Qxe2 {[%emt 0:00:24]} Nb3 {[%emt 0:01:01]} 23. Qe3 {
[%emt 0:06:05]} b5 {[%emt 0:01:59]} 24. Nc3 {[%emt 0:01:12]} Qb6 {[%emt 0:00:
00]} 25. Ne2 {[%emt 0:05:09]} f6 {[%emt 0:09:09]} 26. Ng4 {[%emt 0:00:32]} h5 {
[%emt 0:01:18]} 27. d5 {[%emt 0:00:37]} Qc7 {[%emt 0:02:25]} 28. Nf4 {[%emt 0:
00:00]} Nc5 {[%emt 0:04:26]} 29. Nxh5 {[%emt 0:01:06]} exd5 {[%emt 0:02:07]}
30. exd5 {[%emt 0:00:08]} Nd3 {[%emt 0:00:35]} 31. Rd2 {[%emt 0:07:37]} Bxd5 {
[%emt 0:04:47]} 32. Rfd1 {[%emt 0:01:16]} Qc5 {[%emt 0:02:20]} 33. Qxc5 {
[%emt 0:00:35]} Rxc5 {[%emt 0:00:05]} 34. Nf2 {[%emt 0:00:11]} Bxf3 {[%emt 0:
00:00]} 35. Nxf6+ {[%emt 0:03:13]} gxf6 {[%emt 0:00:06]} 36. gxf3 {[%emt 0:00:
00]} Kf7 {[%emt 0:00:49]} 37. Nxd3 {[%emt 0:00:11]} Rxd3 {[%emt 0:00:19]} 38.
Rxd3 {[%emt 0:00:06]} cxd3 {[%emt 0:00:01]} 39. Rxd3 {[%emt 0:00:44]} Rc1+ {
[%emt 0:00:06]} 40. Kg2 {[%emt 0:00:08]} Rc2+ {[%emt 0:00:06]} 41. Kg3 {
[%emt 0:30:05]} Rxb2 {[%emt 0:30:11]} 42. Rd7+ {[%emt 0:00:36]} Kg6 {[%emt 0:
00:00]} 43. Ra7 {[%emt 0:00:26]} Ra2 {[%emt 0:00:00]} 44. Rxa6 {[%emt 0:00:00]}
b4 {[%emt 0:00:00]} 45. a4 {[%emt 0:00:00]} b3 {[%emt 0:00:00]} 46. Rb6 {
[%emt 0:00:00]} Rxa4 {[%emt 0:00:00]} 47. Rxb3 {[%emt 0:00:00]} Rc4 {[%emt 0:
00:00]} 48. Re3 {[%emt 0:00:00]} Ra4 {[%emt 0:00:00]} 49. Re4 {[%emt 0:00:47]}
Ra1 {[%emt 0:00:00]} 50. Rg4+ {[%emt 0:00:00]} Kf5 {[%emt 0:00:00]} 51. h4 {
[%emt 0:00:00]} Rb1 {[%emt 0:00:00]} 52. Rc4 {[%emt 0:00:00]} Rg1+ {[%emt 0:00:
00]} 53. Kf2 {[%emt 0:00:00]} Ra1 {[%emt 0:00:00]} 54. Rc5+ {[%emt 0:00:00]}
Kf4 {[%emt 0:00:00]} 55. Rc4+ {[%emt 0:00:00]} Kf5 {[%emt 0:00:00]} 56. Rg4 {
[%emt 0:00:00]} Ra2+ {[%emt 0:00:00]} 57. Kg3 {[%emt 0:00:00]} Ra1 {[%emt 0:00:
00]} 58. Rf4+ {[%emt 0:00:00]} Kg6 {[%emt 0:00:00]} 59. h5+ {[%emt 0:00:00]}
Kxh5 {[%emt 0:00:00]} 60. Rxf6 {[%emt 0:00:00]} Kg5 {[%emt 0:00:00]} 1/2-1/2

[Event "44th Chess Olympiad Women 2022"]
[Site "Chennai"]
[Date "2022.08.08"]
[Round "10.48"]
[White "Buhagiar, Melita Sunan"]
[Black "Bofroud, Naya"]
[Result "1/2-1/2"]
[WhiteElo "1431"]
[BlackElo "1660"]
[Annotator "NA RC"]
[PlyCount "94"]
[EventDate "2022.??.??"]
[TimeControl "60"]

1. d4 {[%emt 0:00:03]} d5 {[%emt 0:00:14]} 2. Bf4 {[%emt 0:00:22]} Nf6 {
[%emt 0:00:12]} 3. Nf3 {[%emt 0:00:32]} c5 {[%emt 0:00:31]} 4. e3 {[%emt 0:00:
00]} Nc6 {[%emt 0:00:57]} 5. Nbd2 {[%emt 0:00:27]} e6 {[%emt 0:00:50]} 6. c3 {
[%emt 0:00:29]} Bd6 {[%emt 0:00:16]} 7. Bg3 {[%emt 0:00:33]} O-O {[%emt 0:00:
00]} 8. Bd3 {[%emt 0:00:59]} b6 {[%emt 0:00:19]} 9. Ne5 {[%emt 0:01:05]} Bb7 {
[%emt 0:00:42]} 10. Rc1 {[%emt 0:03:36]} Rc8 {[%emt 0:09:32]} 11. O-O {[%emt 0:
00:00]} Ne7 {[%emt 0:03:45]} 12. Qf3 {[%emt 0:11:27]} Ng6 {[%emt 0:24:59]} 13.
Nxg6 {[%emt 0:07:19]} hxg6 {[%emt 0:00:09]} 14. Bxd6 {[%emt 0:00:13]} Qxd6 {
[%emt 0:00:03]} 15. g4 {[%emt 0:04:19]} Rfe8 {[%emt 0:11:39]} 16. h4 {[%emt 0:
00:00]} e5 {[%emt 0:02:48]} 17. Qg3 {[%emt 0:00:13]} Qe6 {[%emt 0:00:37]} 18.
g5 {[%emt 0:18:58]} Nd7 {[%emt 0:08:28]} 19. Rfe1 {[%emt 0:02:15]} e4 {[%emt 0:
00:00]} 20. Be2 {[%emt 0:00:36]} cxd4 {[%emt 0:05:13]} 21. cxd4 {[%emt 0:01:27]
} Qe7 {[%emt 0:07:48]} 22. Bg4 {[%emt 0:03:54]} Ba6 {[%emt 0:07:51]} 23. a3 {
[%emt 0:05:14]} Bb5 {[%emt 0:03:11]} 24. Nb1 {[%emt 0:05:01]} Bc4 {[%emt 0:00:
00]} 25. Qh3 {[%emt 0:01:00]} Rcd8 {[%emt 0:01:49]} 26. Nd2 {[%emt 0:00:51]}
Bb5 {[%emt 0:02:13]} 27. Rc7 {[%emt 0:00:37]} a5 {[%emt 0:00:59]} 28. Rec1 {
[%emt 0:01:14]} Qd6 {[%emt 0:00:53]} 29. Kg2 {[%emt 0:04:19]} Nf8 {[%emt 0:00:
00]} 30. Qg3 {[%emt 0:02:05]} Ne6 {[%emt 0:01:09]} 31. Qxd6 {[%emt 0:00:52]}
Rxd6 {[%emt 0:00:03]} 32. R7c3 {[%emt 0:00:18]} Re7 {[%emt 0:00:46]} 33. b3 {
[%emt 0:00:27]} f5 {[%emt 0:00:37]} 34. gxf6 {[%emt 0:01:15]} gxf6 {[%emt 0:00:
00]} 35. a4 {[%emt 0:00:08]} Be8 {[%emt 0:00:37]} 36. Be2 {[%emt 0:00:39]} Kg7
{[%emt 0:00:54]} 37. Nb1 {[%emt 0:00:26]} f5 {[%emt 0:00:31]} 38. Na3 {[%emt 0:
00:00]} f4 {[%emt 0:00:14]} 39. Bf1 {[%emt 0:00:26]} fxe3 {[%emt 0:00:24]} 40.
fxe3 {[%emt 0:00:11]} g5 {[%emt 0:00:22]} 41. hxg5 {[%emt 0:30:49]} Nxg5 {
[%emt 0:31:08]} 42. Nb5 {[%emt 0:00:00]} Rg6 {[%emt 0:00:00]} 43. Kf2 {[%emt 0:
00:00]} Rf6+ {[%emt 0:00:00]} 44. Kg2 {[%emt 0:00:00]} Rg6 {[%emt 0:00:00]} 45.
Kf2 {[%emt 0:00:00]} Rf6+ {[%emt 0:00:00]} 46. Kg2 {[%emt 0:00:00]} Rg6 {
[%emt 0:00:00]} 47. Kf2 {[%emt 0:00:00]} Rf6+ {[%emt 0:00:00]} 1/2-1/2

[Event "44th Chess Olympiad Women 2022"]
[Site "Chennai"]
[Date "2022.08.08"]
[Round "10.48"]
[White "Khalil, Manar"]
[Black "Khantree, Napat"]
[Result "1-0"]
[WhiteElo "1831"]
[BlackElo "1362"]
[Annotator "NA RC"]
[PlyCount "67"]
[EventDate "2022.??.??"]
[TimeControl "60"]

1. e4 {[%emt 0:00:04]} e5 {[%emt 0:00:05]} 2. Nf3 {[%emt 0:00:12]} Nc6 {
[%emt 0:00:10]} 3. d4 {[%emt 0:00:10]} exd4 {[%emt 0:00:06]} 4. Nxd4 {[%emt 0:
00:00]} Bc5 {[%emt 0:00:19]} 5. Be3 {[%emt 0:00:15]} Qf6 {[%emt 0:00:14]} 6. c3
{[%emt 0:00:18]} Nge7 {[%emt 0:00:07]} 7. Bc4 {[%emt 0:00:33]} d6 {[%emt 0:00:
00]} 8. O-O {[%emt 0:00:53]} Bb6 {[%emt 0:00:40]} 9. Kh1 {[%emt 0:01:28]} Ne5 {
[%emt 0:01:19]} 10. Be2 {[%emt 0:00:58]} Qh4 {[%emt 0:01:45]} 11. f4 {[%emt 0:
00:00]} Ng4 {[%emt 0:01:19]} 12. Bg1 {[%emt 0:04:56]} d5 {[%emt 0:03:00]} 13.
exd5 {[%emt 0:06:04]} Nxd5 {[%emt 0:00:07]} 14. Bxg4 {[%emt 0:01:30]} Bxg4 {
[%emt 0:01:05]} 15. Re1+ {[%emt 0:01:37]} Ne7 {[%emt 0:00:06]} 16. Qd2 {
[%emt 0:02:35]} O-O {[%emt 0:00:19]} 17. a4 {[%emt 0:06:21]} Rad8 {[%emt 0:00:
00]} 18. Bf2 {[%emt 0:06:36]} Qf6 {[%emt 0:00:55]} 19. a5 {[%emt 0:00:56]} Bc5
{[%emt 0:01:54]} 20. Qc2 {[%emt 0:19:59]} Nf5 {[%emt 0:19:06]} 21. Nxf5 {
[%emt 0:01:59]} Bxf5 {[%emt 0:00:07]} 22. Qe2 {[%emt 0:00:40]} Bd3 {[%emt 0:00:
00]} 23. Qf3 {[%emt 0:00:40]} Bxf2 {[%emt 0:00:40]} 24. Qxf2 {[%emt 0:00:09]}
Rfe8 {[%emt 0:01:39]} 25. Nd2 {[%emt 0:01:07]} a6 {[%emt 0:00:32]} 26. Re3 {
[%emt 0:03:31]} Rxe3 {[%emt 0:03:35]} 27. Qxe3 {[%emt 0:02:06]} h6 {[%emt 0:00:
00]} 28. h3 {[%emt 0:05:28]} Qc6 {[%emt 0:00:59]} 29. Re1 {[%emt 0:01:12]} Bf5
{[%emt 0:00:18]} 30. Nf3 {[%emt 0:02:11]} Qb5 {[%emt 0:02:28]} 31. Qe7 {
[%emt 0:04:05]} Rd7 {[%emt 0:01:27]} 32. Qe8+ {[%emt 0:02:14]} Kh7 {[%emt 0:00:
00]} 33. Nd4 {[%emt 0:01:30]} Qxa5 {[%emt 0:01:31]} 34. Re5 {[%emt 0:02:08]}
1-0

[Event "44th Chess Olympiad Women 2022"]
[Site "Chennai"]
[Date "2022.08.08"]
[Round "10.48"]
[White "Prommuang, Araya"]
[Black "Mahmoud, Roula"]
[Result "1-0"]
[WhiteElo "1651"]
[BlackElo "1765"]
[Annotator "NA RC"]
[PlyCount "71"]
[EventDate "2022.??.??"]
[TimeControl "60"]

1. e4 {[%emt 0:00:04]} c5 {[%emt 0:00:05]} 2. Nf3 {[%emt 0:00:24]} e6 {[%emt 0:
00:00]} 3. d4 {[%emt 0:00:05]} cxd4 {[%emt 0:00:03]} 4. Nxd4 {[%emt 0:00:05]}
Nf6 {[%emt 0:00:06]} 5. Nc3 {[%emt 0:00:10]} d6 {[%emt 0:00:04]} 6. Bg5 {
[%emt 0:00:19]} Be7 {[%emt 0:00:15]} 7. f4 {[%emt 0:00:37]} h6 {[%emt 0:02:22]}
8. Bxf6 {[%emt 0:01:15]} Bxf6 {[%emt 0:00:07]} 9. Qd2 {[%emt 0:03:55]} O-O {
[%emt 0:01:27]} 10. O-O-O {[%emt 0:01:21]} a6 {[%emt 0:02:32]} 11. Nb3 {
[%emt 0:03:29]} Be7 {[%emt 0:03:05]} 12. g4 {[%emt 0:04:31]} Nc6 {[%emt 0:00:
00]} 13. Kb1 {[%emt 0:03:45]} Qc7 {[%emt 0:00:53]} 14. h4 {[%emt 0:02:29]} b5 {
[%emt 0:00:29]} 15. h5 {[%emt 0:02:17]} b4 {[%emt 0:02:09]} 16. Ne2 {[%emt 0:
00:00]} Bb7 {[%emt 0:08:43]} 17. g5 {[%emt 0:12:24]} hxg5 {[%emt 0:05:24]} 18.
fxg5 {[%emt 0:02:35]} Ne5 {[%emt 0:00:16]} 19. Bg2 {[%emt 0:12:03]} Rac8 {
[%emt 0:02:15]} 20. Ned4 {[%emt 0:07:23]} Nc4 {[%emt 0:07:16]} 21. Qc1 {
[%emt 0:01:15]} a5 {[%emt 0:00:55]} 22. g6 {[%emt 0:02:15]} a4 {[%emt 0:07:57]}
23. gxf7+ {[%emt 0:03:04]} Rxf7 {[%emt 0:01:00]} 24. Nxe6 {[%emt 0:06:39]} Qb6
{[%emt 0:01:30]} 25. Nbd4 {[%emt 0:03:19]} Rf2 {[%emt 0:00:34]} 26. Bf1 {
[%emt 0:04:20]} Bxe4 {[%emt 0:06:23]} 27. Rg1 {[%emt 0:00:18]} Bf6 {[%emt 0:00:
00]} 28. Bxc4 {[%emt 0:04:01]} Rxc4 {[%emt 0:00:54]} 29. Qh6 {[%emt 0:03:28]}
Qa7 {[%emt 0:16:53]} 30. Nxg7 {[%emt 0:07:22]} Bxg7 {[%emt 0:01:00]} 31. Qe6+ {
[%emt 0:01:00]} Qf7 {[%emt 0:03:06]} 32. Qxe4 {[%emt 0:01:42]} Qxh5 {[%emt 0:
00:00]} 33. Rxg7+ {[%emt 0:03:15]} Kxg7 {[%emt 0:01:11]} 34. Rg1+ {[%emt 0:00:
00]} Kh8 {[%emt 0:01:21]} 35. Qa8+ {[%emt 0:00:22]} Kh7 {[%emt 0:00:33]} 36.
Qg8+ {[%emt 0:00:06]} 1-0

[Event "44th Chess Olympiad Women 2022"]
[Site "Chennai"]
[Date "2022.08.08"]
[Round "10.49"]
[White "Dunat, Kinberlie"]
[Black "Likando Namakau"]
[Result "1/2-1/2"]
[WhiteElo "1398"]
[BlackElo "1544"]
[Annotator "NA RC"]
[PlyCount "133"]
[EventDate "2022.??.??"]
[TimeControl "60"]

1. Nf3 {[%emt 0:00:06]} Nf6 {[%emt 0:00:22]} 2. d4 {[%emt 0:00:07]} e6 {
[%emt 0:00:19]} 3. g3 {[%emt 0:00:42]} d5 {[%emt 0:00:41]} 4. Bg2 {[%emt 0:00:
00]} c5 {[%emt 0:01:30]} 5. e3 {[%emt 0:00:20]} Be7 {[%emt 0:00:45]} 6. O-O {
[%emt 0:00:09]} O-O {[%emt 0:01:55]} 7. b3 {[%emt 0:01:03]} cxd4 {[%emt 0:00:
00]} 8. exd4 {[%emt 0:00:45]} Nc6 {[%emt 0:02:00]} 9. Bb2 {[%emt 0:01:55]} Bd7
{[%emt 0:00:57]} 10. Nbd2 {[%emt 0:00:43]} b5 {[%emt 0:04:05]} 11. Ne5 {
[%emt 0:02:27]} Rc8 {[%emt 0:03:13]} 12. Nxd7 {[%emt 0:01:17]} Qxd7 {[%emt 0:
00:00]} 13. Nf3 {[%emt 0:01:42]} a6 {[%emt 0:04:41]} 14. Ne5 {[%emt 0:00:43]}
Qc7 {[%emt 0:01:39]} 15. Nxc6 {[%emt 0:01:39]} Qxc6 {[%emt 0:00:21]} 16. Rc1 {
[%emt 0:00:34]} Qb6 {[%emt 0:01:50]} 17. Qd3 {[%emt 0:01:08]} Rc7 {[%emt 0:00:
00]} 18. c3 {[%emt 0:02:29]} Rfc8 {[%emt 0:01:33]} 19. Rc2 {[%emt 0:00:34]} Qa5
{[%emt 0:03:12]} 20. Ra1 {[%emt 0:03:56]} Qb6 {[%emt 0:16:40]} 21. Rac1 {
[%emt 0:01:20]} a5 {[%emt 0:02:59]} 22. a3 {[%emt 0:02:01]} a4 {[%emt 0:04:32]}
23. b4 {[%emt 0:01:07]} Rc4 {[%emt 0:02:01]} 24. Bf1 {[%emt 0:01:23]} Ne4 {
[%emt 0:09:41]} 25. Qd1 {[%emt 0:04:39]} R4c7 {[%emt 0:00:55]} 26. Qd3 {
[%emt 0:00:51]} Nd6 {[%emt 0:00:47]} 27. Qd1 {[%emt 0:04:17]} g6 {[%emt 0:00:
00]} 28. h4 {[%emt 0:01:11]} Bf8 {[%emt 0:01:08]} 29. Bd3 {[%emt 0:01:25]} Nc4
{[%emt 0:06:45]} 30. Bxc4 {[%emt 0:00:41]} dxc4 {[%emt 0:00:22]} 31. Qg4 {
[%emt 0:00:20]} Qc6 {[%emt 0:03:20]} 32. Re1 {[%emt 0:00:42]} Bg7 {[%emt 0:00:
00]} 33. Bc1 {[%emt 0:01:23]} h5 {[%emt 0:01:40]} 34. Qe2 {[%emt 0:00:32]} Re7
{[%emt 0:02:28]} 35. Bf4 {[%emt 0:00:45]} Rce8 {[%emt 0:00:48]} 36. Qe4 {
[%emt 0:02:57]} Qd5 {[%emt 0:05:00]} 37. Rce2 {[%emt 0:01:13]} Rd7 {[%emt 0:00:
00]} 38. Qxd5 {[%emt 0:02:32]} Rxd5 {[%emt 0:00:12]} 39. Kg2 {[%emt 0:00:37]}
Kf8 {[%emt 0:00:26]} 40. f3 {[%emt 0:02:09]} Ke7 {[%emt 0:01:07]} 41. Bg5+ {
[%emt 0:32:34]} Kd7 {[%emt 0:30:21]} 42. Kf2 {[%emt 0:03:11]} f6 {[%emt 0:00:
00]} 43. Bc1 {[%emt 0:03:48]} Re7 {[%emt 0:03:42]} 44. Re4 {[%emt 0:05:01]} Bf8
{[%emt 0:02:13]} 45. g4 {[%emt 0:03:44]} f5 {[%emt 0:00:00]} 46. gxf5 {[%emt 0:
00:00]} exf5 {[%emt 0:00:00]} 47. Rxe7+ {[%emt 0:00:00]} Bxe7 {[%emt 0:00:00]}
48. Bg5 {[%emt 0:00:00]} Bxg5 {[%emt 0:00:00]} 49. hxg5 {[%emt 0:00:00]} f4 {
[%emt 0:00:00]} 50. Re4 {[%emt 0:00:00]} Rxg5 {[%emt 0:00:00]} 51. Rxf4 {
[%emt 0:00:00]} Rd5 {[%emt 0:00:00]} 52. Re4 {[%emt 0:00:00]} g5 {[%emt 0:00:
00]} 53. Kg3 {[%emt 0:00:00]} Rf5 {[%emt 0:00:00]} 54. f4 {[%emt 0:00:00]}
gxf4+ {[%emt 0:00:00]} 55. Rxf4 {[%emt 0:00:00]} Rg5+ {[%emt 0:00:00]} 56. Kf2
{[%emt 0:00:00]} Ke6 {[%emt 0:00:00]} 57. Re4+ {[%emt 0:00:00]} Kd5 {[%emt 0:
00:00]} 58. Re8 {[%emt 0:00:00]} Rf5+ {[%emt 0:00:00]} 59. Kg2 {[%emt 0:00:00]}
h4 {[%emt 0:00:00]} 60. Re3 {[%emt 0:00:00]} Rg5+ {[%emt 0:00:00]} 61. Kh2 {
[%emt 0:00:00]} Rf5 {[%emt 0:00:00]} 62. Kg2 {[%emt 0:00:00]} Rg5+ {[%emt 0:00:
00]} 63. Kh2 {[%emt 0:00:00]} Rf5 {[%emt 0:00:00]} 64. Kg2 {[%emt 0:00:00]}
Rg5+ {[%emt 0:00:03]} 65. Kh2 {[%emt 0:00:00]} Rf5 {[%emt 0:00:07]} 66. Kg2 {
[%emt 0:00:00]} Rg5+ {[%emt 0:00:09]} 67. Kh2 {[%emt 0:00:00]} 1/2-1/2

[Event "44th Chess Olympiad Women 2022"]
[Site "Chennai"]
[Date "2022.08.08"]
[Round "10.49"]
[White "Jonet, Davena"]
[Black "Bwalya Mulwale, Lubuuto"]
[Result "0-1"]
[WhiteElo "1458"]
[BlackElo "1751"]
[Annotator "NA RC"]
[PlyCount "110"]
[EventDate "2022.??.??"]
[TimeControl "60"]

1. e4 {[%emt 0:00:02]} c6 {[%emt 0:00:28]} 2. d4 {[%emt 0:00:19]} d5 {[%emt 0:
00:00]} 3. exd5 {[%emt 0:00:44]} cxd5 {[%emt 0:00:11]} 4. Bd3 {[%emt 0:00:53]}
Nc6 {[%emt 0:01:25]} 5. c3 {[%emt 0:00:21]} Nf6 {[%emt 0:00:44]} 6. h3 {
[%emt 0:00:10]} e6 {[%emt 0:00:39]} 7. Nf3 {[%emt 0:00:38]} Bd6 {[%emt 0:00:39]
} 8. O-O {[%emt 0:01:23]} O-O {[%emt 0:00:04]} 9. Re1 {[%emt 0:01:37]} Ne7 {
[%emt 0:04:00]} 10. Bg5 {[%emt 0:04:30]} Ng6 {[%emt 0:00:15]} 11. Qd2 {[%emt 0:
00:00]} Qc7 {[%emt 0:03:19]} 12. Bxf6 {[%emt 0:04:30]} gxf6 {[%emt 0:00:29]}
13. Qh6 {[%emt 0:08:24]} Rd8 {[%emt 0:02:23]} 14. Nh4 {[%emt 0:02:16]} Bf4 {
[%emt 0:04:09]} 15. Qh5 {[%emt 0:02:49]} Bg5 {[%emt 0:03:03]} 16. Nf3 {[%emt 0:
00:00]} Bf4 {[%emt 0:01:32]} 17. Na3 {[%emt 0:05:41]} a6 {[%emt 0:00:39]} 18.
Nc2 {[%emt 0:00:19]} b5 {[%emt 0:01:25]} 19. Nh4 {[%emt 0:04:35]} Kg7 {[%emt 0:
00:00]} 20. Nxg6 {[%emt 0:03:09]} hxg6 {[%emt 0:01:08]} 21. Qf3 {[%emt 0:01:40]
} e5 {[%emt 0:01:26]} 22. dxe5 {[%emt 0:06:53]} fxe5 {[%emt 0:00:48]} 23. Qd1 {
[%emt 0:01:47]} Rh8 {[%emt 0:02:57]} 24. Bf1 {[%emt 0:01:10]} Bb7 {[%emt 0:00:
00]} 25. Nb4 {[%emt 0:00:31]} Rad8 {[%emt 0:03:33]} 26. Nd3 {[%emt 0:01:15]} e4
{[%emt 0:07:50]} 27. Nxf4 {[%emt 0:01:36]} Qxf4 {[%emt 0:00:20]} 28. Qd4+ {
[%emt 0:00:19]} f6 {[%emt 0:00:41]} 29. Rad1 {[%emt 0:02:02]} Qc7 {[%emt 0:00:
00]} 30. b3 {[%emt 0:02:22]} g5 {[%emt 0:01:39]} 31. Qb4 {[%emt 0:02:01]} g4 {
[%emt 0:01:36]} 32. Re3 {[%emt 0:02:07]} f5 {[%emt 0:01:40]} 33. Rg3 {[%emt 0:
00:00]} Bc8 {[%emt 0:03:13]} 34. hxg4 {[%emt 0:02:34]} fxg4 {[%emt 0:01:28]}
35. Be2 {[%emt 0:00:55]} Rh4 {[%emt 0:01:57]} 36. Qd4+ {[%emt 0:01:25]} Kg6 {
[%emt 0:01:00]} 37. c4 {[%emt 0:02:40]} Rdh8 {[%emt 0:00:53]} 38. Qxh8 {
[%emt 0:01:18]} Rxh8 {[%emt 0:00:04]} 39. Bxg4 {[%emt 0:01:26]} Bxg4 {[%emt 0:
00:00]} 40. Rxg4+ {[%emt 0:00:29]} Kf5 {[%emt 0:00:13]} 41. Rg3 {[%emt 0:33:11]
} dxc4 {[%emt 0:30:27]} 42. bxc4 {[%emt 0:03:36]} Qxc4 {[%emt 0:00:31]} 43. Ra3
{[%emt 0:04:35]} b4 {[%emt 0:00:23]} 44. Ra5+ {[%emt 0:00:00]} Ke6 {[%emt 0:00:
00]} 45. Rg5 {[%emt 0:00:00]} Qxa2 {[%emt 0:00:00]} 46. Rg6+ {[%emt 0:00:00]}
Kf7 {[%emt 0:00:00]} 47. Rgd6 {[%emt 0:00:00]} Re8 {[%emt 0:00:00]} 48. Rd7+ {
[%emt 0:00:00]} Re7 {[%emt 0:00:00]} 49. R7d2 {[%emt 0:00:00]} Qa3 {[%emt 0:00:
00]} 50. g3 {[%emt 0:00:00]} e3 {[%emt 0:00:00]} 51. fxe3 {[%emt 0:00:00]}
Qxe3+ {[%emt 0:00:00]} 52. Kh2 {[%emt 0:00:00]} b3 {[%emt 0:00:00]} 53. Rd3 {
[%emt 0:00:00]} Qe2+ {[%emt 0:00:00]} 54. Kh3 {[%emt 0:00:00]} b2 {[%emt 0:00:
00]} 55. R3d2 {[%emt 0:00:00]} Qxd2 {[%emt 0:00:00]} 0-1